Body Name,Body,Supplier Name,Spending Service,Nature of Spend,Ledger Date,Invoice Reference,Net Amount (excluding VAT)
Lancaster City Council,30UH,A & G Trade Plastics Ltd,Environmental Services,Capital Payments To Contractors         ,13/09/2011,2016,2800
Lancaster City Council,30UH,A & G Trade Plastics Ltd,Environmental Services,Capital Payments To Contractors         ,13/09/2011,2016,700
Lancaster City Council,30UH,A & G Trade Plastics Ltd,Environmental Services,Capital Payments To Contractors         ,13/09/2011,2077,6951.44
Lancaster City Council,30UH,A & G Trade Plastics Ltd,Environmental Services,Capital Payments To Contractors         ,13/09/2011,2117,4454.51
Lancaster City Council,30UH,A & G Trade Plastics Ltd,Environmental Services,Other Construction Costs                ,13/09/2011,2001,700
Lancaster City Council,30UH,A G Electrics,Health & Housing,Contracted Services                     ,15/09/2011,91210,1095
Lancaster City Council,30UH,A G Electrics,Health & Housing,Contracted Services                     ,15/09/2011,91210,780
Lancaster City Council,30UH,A. J. Hayton Welding & Fabrication Ltd,Environmental Services,Repair & Mtce Of Vehicles               ,12/09/2011,956,587
Lancaster City Council,30UH,A.A.M. Services Limited,Health & Housing,Contracted Services                     ,22/09/2011,6464,701
Lancaster City Council,30UH,A1 Supaskips Ltd,Environmental Services,Services - Waste Disposal               ,06/09/2011,41572,2279.72
Lancaster City Council,30UH,A1 Supaskips Ltd,Environmental Services,Services - Waste Disposal               ,28/09/2011,41751,772.5
Lancaster City Council,30UH,A1 Supaskips Ltd,Environmental Services,Services - Waste Disposal               ,28/09/2011,41890,772.5
Lancaster City Council,30UH,Adactus Housing Association Ltd,Regeneration and Policy,Capital Payments To Contractors         ,15/09/2011,AIV0356,275000
Lancaster City Council,30UH,Advance Security (UK) Ltd,Environmental Services,Security Services                       ,05/09/2011,CO046070,6323.73
Lancaster City Council,30UH,AEBI Schmidt UK Ltd,Environmental Services,Repair & Mtce Of Vehicles               ,19/09/2011,60162003,783.27
Lancaster City Council,30UH,AEBI Schmidt UK Ltd,Environmental Services,Repair & Mtce Of Vehicles               ,28/09/2011,60164427,782.48
Lancaster City Council,30UH,Age Concern Lancashire,Financial Services,Grants                                  ,22/09/2011,O50`s Q1 11/12,4999
Lancaster City Council,30UH,Allied (Lancaster) Limited,Property Services,Rent                                    ,01/09/2011,230,102250
Lancaster City Council,30UH,Allied (Lancaster) Limited,Property Services,Service Charges                         ,01/09/2011,230,36313.03
Lancaster City Council,30UH,Allied (Lancaster) Limited,Environmental Services,Recharge from Lancaster Marketgate      ,05/09/2011,238,2500
Lancaster City Council,30UH,Anchor Flooring Limited,Environmental Services,R & M - Buildings                       ,28/09/2011,AF/3500,527
Lancaster City Council,30UH,Andrew Goulding General Builder,Health & Housing,Contracted Services                     ,07/09/2011,AG-260811,876
Lancaster City Council,30UH,Andrew Goulding General Builder,Health & Housing,Contracted Services                     ,22/09/2011,AG-14092011,745
Lancaster City Council,30UH,Aquarius Acoustics,Community Engagement,Hire Of Equipment                       ,27/09/2011,2k11-49,2100
Lancaster City Council,30UH,Arc,Community Engagement,Venue - Premises Hire Costs             ,22/09/2011,190911,2073.17
Lancaster City Council,30UH,Arnold Building Services Ltd,Environmental Services,Gas                                     ,07/09/2011,INV022078,3585.96
Lancaster City Council,30UH,Askam Construction Ltd,Regeneration and Policy,Capital Payments To Contractors         ,08/09/2011,99,10989.72
Lancaster City Council,30UH,ATG Access Ltd,Regeneration and Policy,R & M - Sea & River / Promenade         ,08/09/2011,MS1102059,1691.75
Lancaster City Council,30UH,ATS Euromaster Ltd,Environmental Services,Repair & Mtce Of Vehicles               ,13/09/2011,75681,566.19
Lancaster City Council,30UH,ATS Euromaster Ltd,Environmental Services,Repair & Mtce Of Vehicles               ,14/09/2011,76356,1511.66
Lancaster City Council,30UH,Axiomatic Technology Limited,Community Engagement,Equipment Maintenance                   ,28/09/2011,3005,569.25
Lancaster City Council,30UH,B & G Comedy Limited,Community Engagement,Exhibitions & Events - % Above Guarantee,22/09/2011,5698,3209.54
Lancaster City Council,30UH,Bay Scaffolding Ltd,Health & Housing,Contracted Services                     ,01/09/2011,6553,525
Lancaster City Council,30UH,Beaver 84 Ltd,Community Engagement,Hire Of Equipment                       ,27/09/2011,H1105595,887.52
Lancaster City Council,30UH,Booker,Community Engagement,Materials For Resale                    ,08/09/2011,11262,593.1
Lancaster City Council,30UH,Bright Lites UK Ltd,Community Engagement,Services - General                      ,14/09/2011,248859,1560
Lancaster City Council,30UH,British Gas Business,Community Engagement,Gas                                     ,13/09/2011,50442780/1,4205.94
Lancaster City Council,30UH,British Gas Business,Property Services,Gas                                     ,13/09/2011,48030677/1,-5533.56
Lancaster City Council,30UH,British Gas Business,Property Services,Gas                                     ,13/09/2011,48030677/2,5524.21
Lancaster City Council,30UH,British Gas Business,Health & Housing,Gas                                     ,15/09/2011,50592733/1,851.85
Lancaster City Council,30UH,British Gas Business,Health & Housing,Gas                                     ,15/09/2011,50592734/1,849.11
Lancaster City Council,30UH,British Gas Business,Health & Housing,Gas                                     ,15/09/2011,50592735/1,1017.39
Lancaster City Council,30UH,British Gas Business,Health & Housing,Gas                                     ,15/09/2011,50592762/1,734.53
Lancaster City Council,30UH,British Gas Business,Property Services,Gas                                     ,19/09/2011,48846613/1,-1093.09
Lancaster City Council,30UH,British Gas Business,Property Services,Gas                                     ,19/09/2011,50311257/1,1691.37
Lancaster City Council,30UH,British Gas Business,Community Engagement,Electricity                             ,27/09/2011,50602478/1,1138.01
Lancaster City Council,30UH,British Gas Business,Community Engagement,Electricity                             ,27/09/2011,50607767/1,778.01
Lancaster City Council,30UH,British Waterways,Property Services,Rent                                    ,26/09/2011,162634,900
Lancaster City Council,30UH,Broxap Ltd,Environmental Services,Equipment and Tools - General           ,06/09/2011,INV077201,800
Lancaster City Council,30UH,Broxap Ltd,Environmental Services,Materials - General                     ,19/09/2011,INV07921,1805
Lancaster City Council,30UH,Broxap Ltd,Environmental Services,White Lund Stock                        ,20/09/2011,INV079122,931
Lancaster City Council,30UH,C & G Recycling,Governance Services,Services - General                      ,07/09/2011,789,611.2
Lancaster City Council,30UH,Cable&Wireless UK,Information Services,Telephones                              ,27/09/2011,B1-16158465,3180.35
Lancaster City Council,30UH,Capita Symonds Ltd,Regeneration and Policy,Services - Consultants                  ,01/09/2011,92095195,556.9
Lancaster City Council,30UH,Capita Symonds Ltd,Property Services,Capital Payments To Contractors         ,06/09/2011,92133681,21945
Lancaster City Council,30UH,Capita Symonds Ltd,Property Services,Capital Payments To Contractors         ,26/09/2011,92133663,7655
Lancaster City Council,30UH,Capita Symonds Ltd,Property Services,Capital Payments To Contractors         ,26/09/2011,92188189,3314.21
Lancaster City Council,30UH,Carlsberg UK Limited,Community Engagement,Bar Supplies                            ,01/09/2011,EW52072592,1218.46
Lancaster City Council,30UH,CBH Training Limited,Governance Services,Corporate Training Budget               ,09/09/2011,829,700
Lancaster City Council,30UH,CEEP Limited,Community Engagement,Services - Consultants                  ,22/09/2011,LCCPS01,4000
Lancaster City Council,30UH,CEMEX UK Materials Ltd,Environmental Services,Materials - General                     ,16/09/2011,30045678618,954.92
Lancaster City Council,30UH,Chubb Fire Limited,Property Services,R & M - Buildings                       ,06/09/2011,2901433,530.33
Lancaster City Council,30UH,Ciceley Commercials Ltd.,Environmental Services,Repair & Mtce Of Vehicles               ,20/09/2011,15253525,1666.85
Lancaster City Council,30UH,Cleanall Services Ltd.,Property Services,Other Cleaning                          ,23/09/2011,16960,5624
Lancaster City Council,30UH,Climate Control Engineering,Health & Housing,Contracted Services                     ,01/09/2011,10114,1250
Lancaster City Council,30UH,CMP Sales & Service Limited,Community Engagement,Equipment and Tools - General           ,06/09/2011,934,2970
Lancaster City Council,30UH,ConsultCIH Ltd,Health & Housing,Consultancy                             ,22/09/2011,2175,1343.45
Lancaster City Council,30UH,Contour Showers Ltd.,Environmental Services,Capital Payments To Contractors         ,20/09/2011,376372,684.05
Lancaster City Council,30UH,Contour Showers Ltd.,Environmental Services,Other Construction Costs                ,21/09/2011,373427,523.8
Lancaster City Council,30UH,"Cook, Hammond and Kell",Regeneration and Policy,Services - General                      ,14/09/2011,71321,650
Lancaster City Council,30UH,Co-Operative Funeral Service,Health & Housing,Services - Burial Of The Dead           ,12/09/2011,f45362-01428,1151.75
Lancaster City Council,30UH,Corona Energy,Community Engagement,Gas                                     ,05/09/2011,11197,665.76
Lancaster City Council,30UH,Corona Energy,Community Engagement,Gas                                     ,19/09/2011,11378,818.76
Lancaster City Council,30UH,Correct Flow Engineering Ltd,Community Engagement,Other Fixed Plant                       ,28/09/2011,19589,690
Lancaster City Council,30UH,Craig Jury Plant and Tool repairs,Environmental Services,Equipment and Tools - General           ,27/09/2011,1637,990
Lancaster City Council,30UH,Cumbria Action for Sustainability,Regeneration and Policy,Countryside Projects Wardening          ,26/09/2011,2011/AONB2,1500
Lancaster City Council,30UH,Cumbria Truck Centre Limited,Environmental Services,Repair & Mtce Of Vehicles               ,28/09/2011,S085034,770.63
Lancaster City Council,30UH,D A Edgar Plastering & Tiling,Environmental Services,Capital Payments To Contractors         ,15/09/2011,50911,1120
Lancaster City Council,30UH,Dave Wilson Developments,Health & Housing,Capital Grants                          ,08/09/2011,DFG,3167.54
Lancaster City Council,30UH,Dave Wilson Developments,Health & Housing,Capital Grants                          ,13/09/2011,DFG,2616.2
Lancaster City Council,30UH,David A. Farrer Limited,Health & Housing,Capital Grants                          ,22/09/2011,DFG,3249
Lancaster City Council,30UH,David A. Farrer Limited,Health & Housing,Capital Grants                          ,22/09/2011,DFG,2860
Lancaster City Council,30UH,Deekay Technical Recruitment Ltd,Regeneration and Policy,Services - Consultants                  ,21/09/2011,77116,640
Lancaster City Council,30UH,Derek Franks Organisation,Community Engagement,Exhibitions & Events - Guarantees       ,22/09/2011,4710,3600
Lancaster City Council,30UH,Dick Leigh Chainsaw Specialist,Community Engagement,Grants                                  ,07/09/2011,127874,1138
Lancaster City Council,30UH,Dickinson & Whitaker Limited,Health & Housing,Capital Grants                          ,27/09/2011,DFG,3815
Lancaster City Council,30UH,Dispo International,Community Engagement,Equipment and Tools - General           ,27/09/2011,2112122,656.44
Lancaster City Council,30UH,Dutton International Limited,Environmental Services,Contracted Services                     ,19/09/2011,M166232,2187.05
Lancaster City Council,30UH,Dutton International Limited,Environmental Services,Contracted Services                     ,27/09/2011,M166317,2139.89
Lancaster City Council,30UH,Dutton International Limited,Environmental Services,Contracted Services                     ,27/09/2011,M166510,729.02
Lancaster City Council,30UH,Dutton International Limited,Environmental Services,Contracted Services                     ,28/09/2011,M 166520,872.46
Lancaster City Council,30UH,DVLA,Environmental Services,Vehicle Licences                        ,12/09/2011,11280,652.5
Lancaster City Council,30UH,DVLA,Environmental Services,Vehicle Licences                        ,12/09/2011,11281,652.5
Lancaster City Council,30UH,DVLA,Environmental Services,Vehicle Licences                        ,12/09/2011,11299,652.5
Lancaster City Council,30UH,DVLA,Environmental Services,Vehicle Licences                        ,12/09/2011,11300,652.5
Lancaster City Council,30UH,E.ON,Regeneration and Policy,Electricity                             ,08/09/2011,HBB1EOA60,548.75
Lancaster City Council,30UH,E.ON ,Property Services,Electricity                             ,15/09/2011,HBDED649A,657.74
Lancaster City Council,30UH,E.ON ,Environmental Services,Electricity                             ,22/09/2011,400397435,854
Lancaster City Council,30UH,Electric Center,Environmental Services,White Lund Stock                        ,21/09/2011,I4940518,936
Lancaster City Council,30UH,Electric Center,Environmental Services,White Lund Stock                        ,27/09/2011,I4949626,1014
Lancaster City Council,30UH,EMCOR Engineering Services Ltd,Health & Housing,Capital Payments To Contractors         ,01/09/2011,MCO1003853,38612.49
Lancaster City Council,30UH,EMCOR Engineering Services Ltd,Health & Housing,Gas Partnership Agreement               ,01/09/2011,MCO1003852,38970.8
Lancaster City Council,30UH,EMCOR Engineering Services Ltd,Health & Housing,Capital Payments To Contractors         ,15/09/2011,MCO1003877,40743.41
Lancaster City Council,30UH,EMCOR Engineering Services Ltd,Health & Housing,Gas Partnership Agreement               ,15/09/2011,MCO1003876,42030.47
Lancaster City Council,30UH,EMCOR Engineering Services Ltd,Health & Housing,Gas Partnership Agreement               ,20/09/2011,MCO1003881,18373.56
Lancaster City Council,30UH,Emo Oil Ltd,Environmental Services,White Lund Stock                        ,09/09/2011,6637453,24958.63
Lancaster City Council,30UH,Emo Oil Ltd,Environmental Services,White Lund Stock                        ,20/09/2011,6694563,25322
Lancaster City Council,30UH,Envirovent Ltd,Health & Housing,Contracted Services                     ,15/09/2011,70677,899
Lancaster City Council,30UH,Envirovent Ltd,Health & Housing,Contracted Services                     ,15/09/2011,70678,699
Lancaster City Council,30UH,Eversheds LLP,Regeneration and Policy,External Professional Fees              ,08/09/2011,90968463,3819.61
Lancaster City Council,30UH,Extreme Cool Limited,Community Engagement,Services - General                      ,27/09/2011,1440427,650
Lancaster City Council,30UH,Fencing and Landscapes Limited,Health & Housing,Contracted Services                     ,01/09/2011,7,730
Lancaster City Council,30UH,Fencing and Landscapes Limited,Health & Housing,Contracted Services                     ,15/09/2011,12,550
Lancaster City Council,30UH,Fencing and Landscapes Limited,Health & Housing,Contracted Services                     ,15/09/2011,12,840
Lancaster City Council,30UH,Fencing and Landscapes Limited,Health & Housing,Contracted Services                     ,15/09/2011,13,740
Lancaster City Council,30UH,Fencing and Landscapes Limited,Health & Housing,Contracted Services                     ,15/09/2011,13,910
Lancaster City Council,30UH,FlatRoofing Systems,Property Services,Capital Payments To Contractors         ,01/09/2011,7889,11991.05
Lancaster City Council,30UH,FlatRoofing Systems,Property Services,Capital Payments To Contractors         ,01/09/2011,7890,9228.91
Lancaster City Council,30UH,FlatRoofing Systems,Property Services,Capital Payments To Contractors         ,07/09/2011,7907,96819.51
Lancaster City Council,30UH,FlatRoofing Systems,Property Services,Capital Payments To Contractors         ,28/09/2011,7927,41049.3
Lancaster City Council,30UH,Future Office Limited,Property Services,Capital Payments To Contractors         ,13/09/2011,10895,3416
Lancaster City Council,30UH,G & G Signs,Environmental Services,R & M - General                         ,19/09/2011,13539,638.55
Lancaster City Council,30UH,G.W. Resources,Governance Services,Corporate Training Budget               ,08/09/2011,2111,1372
Lancaster City Council,30UH,Gardners Tiles Ltd,Environmental Services,Other Construction Costs                ,20/09/2011,1015,630.99
Lancaster City Council,30UH,Gary Capstick Limited,Health & Housing,Capital Grants                          ,13/09/2011,DFG,14983.9
Lancaster City Council,30UH,Gelpack Excelsior Ltd,Environmental Services,White Lund Stock                        ,26/09/2011,SINV-041583,6765
Lancaster City Council,30UH,Global Link,Regeneration and Policy,Grants                                  ,12/09/2011,SDF1,851.66
Lancaster City Council,30UH,Global Link,Regeneration and Policy,Grants                                  ,15/09/2011,sdf1,851.66
Lancaster City Council,30UH,Graham The Plumber`s Merchant,Environmental Services,Other Construction Costs                ,09/09/2011,0235/0122905,2889.86
Lancaster City Council,30UH,Graham The Plumber`s Merchant,Environmental Services,Other Construction Costs                ,27/09/2011,0235/0122310,3087
Lancaster City Council,30UH,Greenham Trading Limited,Environmental Services,White Lund Stock                        ,09/09/2011,11/071957,1200
Lancaster City Council,30UH,Hawkswell Kilvington,Property Services,Services - Consultants                  ,07/09/2011,1514,950
Lancaster City Council,30UH,Henry Alty Limited,Environmental Services,Materials - General                     ,05/09/2011,626214,708.3
Lancaster City Council,30UH,Herbert T. Forrest Ltd,Health & Housing,Capital Payments To Contractors         ,15/09/2011,011462-1,55625.18
Lancaster City Council,30UH,Highwood Consultants Ltd,Environmental Services,Other Construction Costs                ,08/09/2011,6203,15088.32
Lancaster City Council,30UH,Highwood Consultants Ltd,Environmental Services,Other Construction Costs                ,08/09/2011,6203,5840.64
Lancaster City Council,30UH,Highwood Consultants Ltd,Environmental Services,Other Construction Costs                ,19/09/2011,6235,5508
Lancaster City Council,30UH,Highwood Consultants Ltd,Environmental Services,Other Construction Costs                ,19/09/2011,6235,9462.44
Lancaster City Council,30UH,Highwood Consultants Ltd,Environmental Services,Other Construction Costs                ,19/09/2011,6235,3519.36
Lancaster City Council,30UH,Hillserve Limited,Health & Housing,Capital Payments To Contractors         ,07/09/2011,21474,3394.14
Lancaster City Council,30UH,Hillserve Limited,Health & Housing,Capital Payments To Contractors         ,15/09/2011,21499,1471.52
Lancaster City Council,30UH,Hodges North West Ltd,Health & Housing,Capital Grants                          ,22/09/2011,DFG,3590.8
Lancaster City Council,30UH,Holdex (Plywood) Ltd,Environmental Services,White Lund Stock                        ,06/09/2011,58712,925
Lancaster City Council,30UH,Honeywell Control Systems Ltd,Property Services,R & M - Buildings                       ,06/09/2011,5200536142,1529.75
Lancaster City Council,30UH,Honeywell Control Systems Ltd,Property Services,R & M - Buildings                       ,06/09/2011,5200539420,1073.98
Lancaster City Council,30UH,Honeywell Control Systems Ltd,Property Services,R & M - Buildings                       ,12/09/2011,5200542702,576
Lancaster City Council,30UH,Honeywell Control Systems Ltd,Property Services,R & M - Buildings                       ,12/09/2011,5200543048,4352
Lancaster City Council,30UH,Horton Automatics Limited,Property Services,R & M - Buildings                       ,06/09/2011,4033690,1101.42
Lancaster City Council,30UH,Hotfoot Design Limited,Community Engagement,Marketing                               ,06/09/2011,H000162,1045.6
Lancaster City Council,30UH,Hotfoot Design Limited,Community Engagement,Printing & Stationery                   ,06/09/2011,H000157,1084
Lancaster City Council,30UH,Hotfoot Design Limited,Community Engagement,Miscellaneous Advertising               ,12/09/2011,H000169,1286.08
Lancaster City Council,30UH,Hotfoot Design Limited,Community Engagement,Printing & Stationery                   ,12/09/2011,H000017,599
Lancaster City Council,30UH,Howdens Joinery Co,Environmental Services,Materials - General                     ,05/09/2011,D61/0020066,926.47
Lancaster City Council,30UH,Howdens Joinery Co,Environmental Services,Materials - General                     ,20/09/2011,D61/0020318,681.31
Lancaster City Council,30UH,Howdens Joinery Co,Environmental Services,Materials - General                     ,20/09/2011,D61/0021139,917.8
Lancaster City Council,30UH,Howsons Ltd,Health & Housing,R & M - Buildings                       ,15/09/2011,8826,7945
Lancaster City Council,30UH,Hugh Logan Engineering Ltd,Environmental Services,Materials - General                     ,05/09/2011,29138,695
Lancaster City Council,30UH,Instarmac Group PLC,Environmental Services,White Lund Stock                        ,27/09/2011,352393,1762.88
Lancaster City Council,30UH,Integrated Water Services Ltd,Property Services,R & M - Buildings                       ,20/09/2011,5059729,3230
Lancaster City Council,30UH,ISOQAR Ltd,Health & Housing,ISO 9000 Accreditation                  ,14/09/2011,66002,1890
Lancaster City Council,30UH,J C Critchley Ltd,Environmental Services,Materials - General                     ,05/09/2011,756,1400
Lancaster City Council,30UH,J C Critchley Ltd,Health & Housing,R & M - Buildings                       ,07/09/2011,757,2000
Lancaster City Council,30UH,J C Critchley Ltd,Environmental Services,Capital Payments To Contractors         ,14/09/2011,754,4020
Lancaster City Council,30UH,J C Critchley Ltd,Environmental Services,Capital Payments To Contractors         ,14/09/2011,754,1326
Lancaster City Council,30UH,J C Critchley Ltd,Environmental Services,Capital Payments To Contractors         ,14/09/2011,759,3255
Lancaster City Council,30UH,J C Critchley Ltd,Environmental Services,Materials - General                     ,14/09/2011,755,5250
Lancaster City Council,30UH,J C Critchley Ltd,Environmental Services,Capital Payments To Contractors         ,27/09/2011,761,2631
Lancaster City Council,30UH,J C Critchley Ltd,Environmental Services,Capital Payments To Contractors         ,27/09/2011,761,960
Lancaster City Council,30UH,J D Joinery & Construction,Health & Housing,Capital Grants                          ,08/09/2011,DFG,13241.67
Lancaster City Council,30UH,Jewson Limited,Health & Housing,Grave Excavation                        ,12/09/2011,0333/00164183,653.88
Lancaster City Council,30UH,Jill Trafford (Instructor),Community Engagement,Services - General                      ,28/09/2011,Sept Gymnastics,849.8
Lancaster City Council,30UH,Jim Thomas Shower Supplies,Community Engagement,R & M - Buildings                       ,28/09/2011,147139,545.34
Lancaster City Council,30UH,JNP Northern LLP,Property Services,Capital Payments To Contractors         ,21/09/2011,9313,1030.7
Lancaster City Council,30UH,JNP Northern LLP,Property Services,Capital Payments To Contractors         ,21/09/2011,9335,2075.99
Lancaster City Council,30UH,JNP Northern LLP,Property Services,Services - Consultants                  ,21/09/2011,9231,3730.53
Lancaster City Council,30UH,Johnston Publishing Ltd,Regeneration and Policy,Miscellaneous Advertising               ,15/09/2011,7580101,626.85
Lancaster City Council,30UH,Johnston Sweepers Ltd,Environmental Services,Repair & Mtce Of Vehicles               ,28/09/2011,60856595,822.6
Lancaster City Council,30UH,Keycraft,Community Engagement,Materials For Resale                    ,01/09/2011,11166,1094.59
Lancaster City Council,30UH,Kings Chambers,Regeneration and Policy,Planning Legal Costs                    ,28/09/2011,306618,1250
Lancaster City Council,30UH,KPMG LLP,Financial Services,Audit Fees                              ,01/09/2011,5500402965,9000
Lancaster City Council,30UH,Lancashire County Council,Community Engagement,Contracted Services                     ,01/09/2011,4600029113,271800
Lancaster City Council,30UH,Lancashire County Council,Health & Housing,Capital Grants                          ,08/09/2011,4600025205,562
Lancaster City Council,30UH,Lancashire County Council,Health & Housing,Capital Grants                          ,08/09/2011,4600027921,2293.79
Lancaster City Council,30UH,Lancashire County Council,Health & Housing,Capital Grants                          ,13/09/2011,46000025639,3207
Lancaster City Council,30UH,Lancashire County Council,Health & Housing,Capital Grants                          ,13/09/2011,4600025201,562
Lancaster City Council,30UH,Lancashire County Council,Health & Housing,Capital Payments To Contractors         ,15/09/2011,4600030427,2477
Lancaster City Council,30UH,Lancashire County Council,Health & Housing,Capital Grants                          ,27/09/2011,4600030340,562
Lancaster City Council,30UH,Lancashire County Council,Health & Housing,Capital Grants                          ,27/09/2011,4600030425,1643.85
Lancaster City Council,30UH,Lancashire County Council,Health & Housing,Capital Grants                          ,27/09/2011,4600030426,762
Lancaster City Council,30UH,Lancashire County Council,Health & Housing,Capital Grants                          ,27/09/2011,4600030429,2742
Lancaster City Council,30UH,Lancashire Wildlife Trust Ltd,Regeneration and Policy,R & M - Buildings                       ,01/09/2011,6146,2222.29
Lancaster City Council,30UH,Lancaster Cast Stone,Environmental Services,Other Construction Costs                ,08/09/2011,19427,580.32
Lancaster City Council,30UH,Lancaster Cast Stone,Environmental Services,Other Construction Costs                ,08/09/2011,19427,1315.69
Lancaster City Council,30UH,Lancaster Management Services T/A LaraNichols ,Community Engagement,Other Cleaning                          ,06/09/2011,2499,578.51
Lancaster City Council,30UH,LCR Systems,Community Engagement,Equipment and Tools - General           ,22/09/2011,R005117,2840
Lancaster City Council,30UH,LDWA,Community Engagement,Grants                                  ,12/09/2011,CSPQ1,5000
Lancaster City Council,30UH,LexisNexis UK,Regeneration and Policy,Books & Periodicals                     ,22/09/2011,DI1N05677,1055
Lancaster City Council,30UH,Light Music Society,Community Engagement,Venue - Premises Hire Costs             ,06/09/2011,LMS 114/11,808
Lancaster City Council,30UH,Lingwood Security Management Limited,Property Services,Security Services                       ,07/09/2011,14845,6144
Lancaster City Council,30UH,Litfest,Community Engagement,Grants                                  ,13/09/2011,9,2300
Lancaster City Council,30UH,Lunar Refrigeration Ltd,Property Services,Fixtures & Fittings - General           ,21/09/2011,28752,665
Lancaster City Council,30UH,M D Hanafin & Sons Ltd,Health & Housing,Contracted Services                     ,22/09/2011,88932,744.34
Lancaster City Council,30UH,M D Hanafin & Sons Ltd,Health & Housing,Contracted Services                     ,22/09/2011,88946,800.5
Lancaster City Council,30UH,M D Hanafin & Sons Ltd,Health & Housing,Contracted Services                     ,22/09/2011,88948,592.99
Lancaster City Council,30UH,M D Hanafin & Sons Ltd,Health & Housing,Contracted Services                     ,22/09/2011,88954,597
Lancaster City Council,30UH,M D Hanafin & Sons Ltd,Health & Housing,Contracted Services                     ,22/09/2011,88965,835.12
Lancaster City Council,30UH,Magnet Limited,Environmental Services,Other Construction Costs                ,19/09/2011,158/131921,543.02
Lancaster City Council,30UH,Magnet Limited,Environmental Services,Capital Payments To Contractors         ,27/09/2011,158/132287,-535.44
Lancaster City Council,30UH,Marshalls Mono Ltd,Environmental Services,Materials - General                     ,28/09/2011,M10074,2236.5
Lancaster City Council,30UH,Maxigiene Environmental Services Limited,Health & Housing,R & M - Buildings                       ,15/09/2011,13497C,900
Lancaster City Council,30UH,Mercer & Sons Limited,Environmental Services,White Lund Stock                        ,27/09/2011,679781,648
Lancaster City Council,30UH,Metric Group Ltd,Property Services,Equipment and Tools - General           ,14/09/2011,101523,1050
Lancaster City Council,30UH,Michael A. Harrison,Property Services,Services - Consultants                  ,14/09/2011,500,712.5
Lancaster City Council,30UH,Mick Liver Ltd,Community Engagement,Materials For Resale                    ,14/09/2011,44,576
Lancaster City Council,30UH,Mick Ogden Diesels,Environmental Services,Repair & Mtce Of Vehicles               ,27/09/2011,21021,900
Lancaster City Council,30UH,Middlesbrough Council,Environmental Services,White Lund Stock                        ,13/09/2011,6212883,1066.6
Lancaster City Council,30UH,More Music in Morecambe Ltd,Community Engagement,Grants                                  ,13/09/2011,1910,500
Lancaster City Council,30UH,Morecambe FC Community Sports,Community Engagement,Services - Consultants                  ,05/09/2011,1833,3000
Lancaster City Council,30UH,Morecambe FC Community Sports,Community Engagement,Grants                                  ,22/09/2011,1836,2500
Lancaster City Council,30UH,Morecambe FC Community Sports,Community Engagement,Grants                                  ,27/09/2011,1837,1500
Lancaster City Council,30UH,Morecambe FC Community Sports,Community Engagement,Grants                                  ,27/09/2011,1838,1000
Lancaster City Council,30UH,Morecambe Press Ltd,Health & Housing,Marketing & Promotion                   ,14/09/2011,5045,1206
Lancaster City Council,30UH,Morgan Lambert Limited,Health & Housing,Contracted Services                     ,15/09/2011,10618,525
Lancaster City Council,30UH,Mr Andrew Pickup,Regeneration and Policy,Grant - Historic Buildings              ,15/09/2011,08/09/2011,1338
Lancaster City Council,30UH,National Express,Community Engagement,National Express                        ,07/09/2011,AREXT/00112499,760.5
Lancaster City Council,30UH,Nearly Dan,Community Engagement,Exhibitions & Events - Guarantees       ,28/09/2011,24/09/2011,866.11
Lancaster City Council,30UH,Nemisis Pyrotechnics Ltd,Community Engagement,Services - General                      ,12/09/2011,5408,9310
Lancaster City Council,30UH,Newclear Drains & Newlook Cleaning Services,Property Services,R & M - Buildings                       ,06/09/2011,7447,1270
Lancaster City Council,30UH,Newclear Drains & Newlook Cleaning Services,Health & Housing,Contracted Services                     ,07/09/2011,7451,980
Lancaster City Council,30UH,Newclear Drains & Newlook Cleaning Services,Health & Housing,Contracted Services                     ,07/09/2011,7460,520
Lancaster City Council,30UH,Newclear Drains & Newlook Cleaning Services,Health & Housing,Contracted Services                     ,15/09/2011,7380,1150
Lancaster City Council,30UH,Newclear Drains & Newlook Cleaning Services,Health & Housing,Contracted Services                     ,22/09/2011,7473,880
Lancaster City Council,30UH,Newclear Drains & Newlook Cleaning Services,Health & Housing,Contracted Services                     ,22/09/2011,7489,680
Lancaster City Council,30UH,NHS Lanarkshire,Governance Services,Services - Medical Fees                 ,23/09/2011,L10017080,1941.33
Lancaster City Council,30UH,Northgate Information Solutions UK Limited,Governance Services,Search Fees                             ,09/09/2011,91177092,640.51
Lancaster City Council,30UH,Northgate Vehicle Hire (North West) Ltd,Environmental Services,Services - General                      ,05/09/2011,SL00723521INV,653.57
Lancaster City Council,30UH,Northgate Vehicle Hire (North West) Ltd,Environmental Services,Tpt & Plant - Casual Hire               ,05/09/2011,SL00723519INV,507.74
Lancaster City Council,30UH,Northgate Vehicle Hire (North West) Ltd,Environmental Services,Tpt & Plant - Casual Hire               ,20/09/2011,SL00723513INV,522.24
Lancaster City Council,30UH,NorthgateArinso UK Limited,Governance Services,Software - Pay Modeller                 ,20/09/2011,I2120407,2823.96
Lancaster City Council,30UH,Norwell Lapley Productions Ltd,Community Engagement,Exhibitions & Events - Guarantees       ,22/09/2011,NLP2011/033,2022.82
Lancaster City Council,30UH,npower,Environmental Services,Electricity                             ,08/09/2011,LGUGC6KJ,1835.26
Lancaster City Council,30UH,npower,Community Engagement,Electricity                             ,09/09/2011,lguggpby,5270.27
Lancaster City Council,30UH,npower,Property Services,Electricity                             ,09/09/2011,LGUGGPB4,1788.91
Lancaster City Council,30UH,npower,Property Services,Electricity                             ,12/09/2011,LGUGGPBZ,841.23
Lancaster City Council,30UH,npower,Property Services,Electricity                             ,14/09/2011,LGUGGPB2,2623.81
Lancaster City Council,30UH,npower,Property Services,Electricity                             ,14/09/2011,LGUGGPB3,1348.91
Lancaster City Council,30UH,npower,Financial Services,Electricity                             ,15/09/2011,LGUF9WPS,2216.25
Lancaster City Council,30UH,npower,Financial Services,Electricity                             ,15/09/2011,LGUFNX7C,2306.12
Lancaster City Council,30UH,npower,Financial Services,Electricity                             ,15/09/2011,LGUFW266,2040.22
Lancaster City Council,30UH,npower,Financial Services,Electricity                             ,15/09/2011,LGUGGPB6,2346.85
Lancaster City Council,30UH,npower,Property Services,Electricity                             ,15/09/2011,LGUGGPB5,1188.24
Lancaster City Council,30UH,npower,Property Services,Electricity                             ,15/09/2011,LGUGKHM6,586.4
Lancaster City Council,30UH,npower,Property Services,Electricity                             ,16/09/2011,LGUGJBG2,1146.05
Lancaster City Council,30UH,npower,Property Services,Electricity                             ,16/09/2011,LGUGJBGX,1203.47
Lancaster City Council,30UH,npower,Property Services,Electricity                             ,16/09/2011,LGUGJBGY,909.39
Lancaster City Council,30UH,npower,Property Services,Electricity                             ,16/09/2011,LGUGJBGZ,1153.95
Lancaster City Council,30UH,npower,Property Services,Electricity                             ,19/09/2011,LGUGKHM5,1174.13
Lancaster City Council,30UH,npower,Health & Housing,Electricity                             ,22/09/2011,LGUGKKL7,1385.68
Lancaster City Council,30UH,npower,Health & Housing,Electricity                             ,22/09/2011,LGUGKKL7,609.37
Lancaster City Council,30UH,npower,Health & Housing,Electricity                             ,22/09/2011,LGUGKKL7,1324.27
Lancaster City Council,30UH,O`Connor Fencing Ltd,Environmental Services,Purchase Of Equipment                   ,27/09/2011,16356,1097
Lancaster City Council,30UH,Olympia Commercial Cleaners,Environmental Services,Window Cleaning                         ,06/09/2011,19182,601.67
Lancaster City Council,30UH,One Voice,Regeneration and Policy,Grants                                  ,21/09/2011,6,500
Lancaster City Council,30UH,Ordnance Survey,Information Services,Ordnance Survey Fee                     ,15/09/2011,91392081,2350
Lancaster City Council,30UH,Otis Ltd.,Property Services,R & M - Buildings                       ,12/09/2011,00979580E,974.34
Lancaster City Council,30UH,Otis Ltd.,Health & Housing,Contracted Services                     ,22/09/2011,985117,1944
Lancaster City Council,30UH,Pentland Plants,Environmental Services,Materials - General                     ,05/09/2011,39601,5313.35
Lancaster City Council,30UH,Pinington Limited,Property Services,R & M - Buildings                       ,07/09/2011,I001299C,3295.21
Lancaster City Council,30UH,Pinington Limited,Property Services,R & M - Buildings                       ,07/09/2011,I001299D,557.13
Lancaster City Council,30UH,Pinington Limited,Property Services,R & M - Buildings                       ,07/09/2011,I001299E,1603.12
Lancaster City Council,30UH,Pinington Limited,Property Services,R & M - Buildings                       ,07/09/2011,I001299F,1853.01
Lancaster City Council,30UH,Pinington Limited,Property Services,R & M - Buildings                       ,20/09/2011,1001301A,6830.12
Lancaster City Council,30UH,Pinington Limited,Property Services,R & M - Buildings                       ,20/09/2011,1001301B,1202.75
Lancaster City Council,30UH,Pinington Limited,Property Services,R & M - Buildings                       ,21/09/2011,1001303D,1766.63
Lancaster City Council,30UH,Playdale Playgrounds Ltd,Environmental Services,Materials - General                     ,06/09/2011,2865,1103
Lancaster City Council,30UH,Premier Paper Ltd,Property Services,Printing & Stationery                   ,02/09/2011,6023374,1383
Lancaster City Council,30UH,Preston City Council,Financial Services,Management Fees                         ,15/09/2011,M26,138595.5
Lancaster City Council,30UH,Principal Pipe Organs,Property Services,Grants                                  ,26/09/2011,8841,2000
Lancaster City Council,30UH,Purchase Power,Property Services,Postages                                ,21/09/2011,AE573077,986.99
Lancaster City Council,30UH,Purple Plumbing Services Limited,Health & Housing,Capital Grants                          ,27/09/2011,DFG,2535
Lancaster City Council,30UH,QBC Wrought Iron,Health & Housing,R & M - Buildings                       ,22/09/2011,QBC-120911,988
Lancaster City Council,30UH,Queensbury Shelters Ltd,Environmental Services,R & M - Buildings                       ,27/09/2011,47846,4576.97
Lancaster City Council,30UH,R & L Jackson Limited,Regeneration and Policy,Capital Payments To Contractors         ,01/09/2011,Contract 34,2437.61
Lancaster City Council,30UH,R & L Jackson Limited,Regeneration and Policy,Capital Payments To Contractors         ,01/09/2011,Contract 35,2257.98
Lancaster City Council,30UH,R & L Jackson Limited,Regeneration and Policy,Capital Payments To Contractors         ,01/09/2011,Contract 36,2401.28
Lancaster City Council,30UH,R & L Jackson Limited,Regeneration and Policy,Capital Payments To Contractors         ,01/09/2011,Contract 37,2210.68
Lancaster City Council,30UH,R Briggs & Son (Lancaster) Ltd,Environmental Services,Routine Maintenance                     ,19/09/2011,15885,652.85
Lancaster City Council,30UH,Ray Adams Electrical Services,Community Engagement,R & M - Buildings                       ,14/09/2011,287,941.69
Lancaster City Council,30UH,Remploy Ltd ,Property Services,Contracted Services                     ,07/09/2011,SLS/80304862,10061.89
Lancaster City Council,30UH,Robinson Howell Partnership Ltd,Community Engagement,Arts Development                        ,14/09/2011,110901,1000
Lancaster City Council,30UH,Rogerson HomeServe Plus Limited,Health & Housing,Capital Grants                          ,13/09/2011,DFG,2114.91
Lancaster City Council,30UH,Rogerson HomeServe Plus Limited,Health & Housing,Capital Grants                          ,13/09/2011,DFG,2586.9
Lancaster City Council,30UH,Rogerson HomeServe Plus Limited,Health & Housing,Capital Payments To Contractors         ,15/09/2011,6699103,14057.95
Lancaster City Council,30UH,Rogerson HomeServe Plus Limited,Health & Housing,Capital Grants                          ,27/09/2011,DFG,2995.07
Lancaster City Council,30UH,Royal Mail Group Ltd,Governance Services,Postages                                ,07/09/2011,9035356039,1242.17
Lancaster City Council,30UH,Royal Mail Group Ltd,Governance Services,Postages                                ,28/09/2011,9035596143,1043.04
Lancaster City Council,30UH,Safesmart Ltd,Property Services,Software Purchase\Licences              ,21/09/2011,6317,750
Lancaster City Council,30UH,Shorrocks Building Works,Health & Housing,Contracted Services                     ,07/09/2011,2922,560
Lancaster City Council,30UH,Shorrocks Building Works,Health & Housing,Contracted Services                     ,15/09/2011,2921,560
Lancaster City Council,30UH,Shorrocks Building Works,Health & Housing,Contracted Services                     ,19/09/2011,2931,5200
Lancaster City Council,30UH,Shorrocks Building Works,Health & Housing,Contracted Services                     ,19/09/2011,2931,3274
Lancaster City Council,30UH,Shorrocks Building Works,Health & Housing,R & M - Buildings                       ,20/09/2011,2932,3269
Lancaster City Council,30UH,Shorrocks Building Works,Health & Housing,R & M - Buildings                       ,20/09/2011,2932,7160
Lancaster City Council,30UH,Signature Limited,Environmental Services,Materials - General                     ,05/09/2011,230501/8846,790
Lancaster City Council,30UH,Signposts MARC Limited,Community Engagement,Services - Consultants                  ,05/09/2011,SP/11/161,4000
Lancaster City Council,30UH,Signs Express (Lancaster),Community Engagement,Miscellaneous Advertising               ,12/09/2011,10275,820.03
Lancaster City Council,30UH,SitexOrbis Limited,Health & Housing,Contracted Services                     ,01/09/2011,R0451825,565.28
Lancaster City Council,30UH,SitexOrbis Limited,Regeneration and Policy,Security Services                       ,14/09/2011,R0452969M,1396.36
Lancaster City Council,30UH,SKM Enviros,Regeneration and Policy,External Professional Fees              ,28/09/2011,VNO1369,510
Lancaster City Council,30UH,Solotrim Ltd.,Property Services,Rent                                    ,12/09/2011,2023,7325
Lancaster City Council,30UH,Spring PCC Limited,Regeneration and Policy,External Professional Fees              ,08/09/2011,138,7875
Lancaster City Council,30UH,Spring PCC Limited,Regeneration and Policy,External Professional Fees              ,28/09/2011,158,3620
Lancaster City Council,30UH,Stagecoach,Community Engagement,Stagecoach Tickets                      ,07/09/2011,11239,501.02
Lancaster City Council,30UH,Star Events Group Ltd,Community Engagement,Services - General                      ,06/09/2011,10740,4500
Lancaster City Council,30UH,STM Environmental Ltd,Health & Housing,Services - Contaminated Land            ,16/09/2011,276,4766.41
Lancaster City Council,30UH,Stonewell Property Company Ltd,Property Services,Rent                                    ,22/09/2011,AA10/2011-3,17500
Lancaster City Council,30UH,Stonewell Property Company Ltd,Property Services,Service Charges                         ,22/09/2011,ZNO/2011-3,3294
Lancaster City Council,30UH,STR Global Limited,Regeneration and Policy,Benchmarking/Research                   ,01/09/2011,114157,2900
Lancaster City Council,30UH,T Rodgers & Son,Health & Housing,Contracted Services                     ,01/09/2011,TR-19/08/11,897
Lancaster City Council,30UH,T. Jackson Plumbing & Heating Services,Health & Housing,Capital Grants                          ,27/09/2011,DFG,2942
Lancaster City Council,30UH,Take One media Ltd,Community Engagement,Brochure Distribution                   ,06/09/2011,OP/I008637,1231.07
Lancaster City Council,30UH,Tarmac Ltd,Environmental Services,Materials - General                     ,19/09/2011,9027249646,572.61
Lancaster City Council,30UH,Tarmac Ltd,Environmental Services,Materials - General                     ,19/09/2011,9027267957,679.09
Lancaster City Council,30UH,Tarmac Ltd,Environmental Services,Materials - General                     ,26/09/2011,9027302282,727.95
Lancaster City Council,30UH,The Bay,Community Engagement,Miscellaneous Advertising               ,07/09/2011,540806,602.33
Lancaster City Council,30UH,The BSS Group PLC,Environmental Services,Capital Payments To Contractors         ,06/09/2011,4193/085048,3179.82
Lancaster City Council,30UH,The Dixon Agency,Community Engagement,Entertainment Fees                      ,27/09/2011,73986,2750
Lancaster City Council,30UH,The Industrial Work Solutions UK Limited,Environmental Services,Contracted Services                     ,28/09/2011,18199,1102.6
Lancaster City Council,30UH,The Industrial Work Solutions UK Limited,Environmental Services,Contracted Services                     ,28/09/2011,18260,1020.65
Lancaster City Council,30UH,The Industrial Work Solutions UK Limited,Environmental Services,Contracted Services                     ,28/09/2011,18307,1083.99
Lancaster City Council,30UH,The Industrial Work Solutions UK Limited,Environmental Services,Contracted Services                     ,28/09/2011,18335,851.18
Lancaster City Council,30UH,The Industrial Work Solutions UK Limited,Environmental Services,Contracted Services                     ,28/09/2011,18385,502.89
Lancaster City Council,30UH,The Industrial Work Solutions UK Limited,Environmental Services,Materials - General                     ,28/09/2011,18217,1102.6
Lancaster City Council,30UH,The Shakespeare Globe Trust,Community Engagement,Exhibitions & Events                    ,12/09/2011,12952,4291.12
Lancaster City Council,30UH,The Uniform & Leisurewear Company Ltd,Community Engagement,Clothing & Uniforms                     ,28/09/2011,47748,565.56
Lancaster City Council,30UH,T-Mobile (UK) Ltd.,Information Services,Mobile Telephones                       ,15/09/2011,V00789981760,1367.05
Lancaster City Council,30UH,T-Mobile (UK) Ltd.,Information Services,Mobile Telephones                       ,15/09/2011,V00795059624,1164.34
Lancaster City Council,30UH,TNT Post North Ltd,Property Services,Postages                                ,02/09/2011,128722,1916.02
Lancaster City Council,30UH,TNT Post North Ltd,Property Services,Postages                                ,02/09/2011,129444,2955.76
Lancaster City Council,30UH,TNT Post North Ltd,Property Services,Postages                                ,02/09/2011,129920,1727.47
Lancaster City Council,30UH,TNT Post North Ltd,Property Services,Postages                                ,07/09/2011,130990,3874.76
Lancaster City Council,30UH,TNT Post North Ltd,Property Services,Postages                                ,23/09/2011,131728,4114.11
Lancaster City Council,30UH,TNT Post North Ltd,Property Services,Postages                                ,27/09/2011,132094,4064.55
Lancaster City Council,30UH,Townscape Products Limited,Environmental Services,White Lund Stock                        ,05/09/2011,57578,1265.92
Lancaster City Council,30UH,Travellers Choice,Community Engagement,Coach Tours                             ,07/09/2011,11241,1784.3
Lancaster City Council,30UH,United Utilities,Community Engagement,Water Services                          ,05/09/2011,11198,721.26
Lancaster City Council,30UH,United Utilities,Environmental Services,Water Services                          ,07/09/2011,4085689614,519.75
Lancaster City Council,30UH,United Utilities,Environmental Services,Water Services                          ,07/09/2011,4085689738,599.81
Lancaster City Council,30UH,United Utilities,Environmental Services,Water Services                          ,07/09/2011,4098068378,540.74
Lancaster City Council,30UH,United Utilities,Health & Housing,Water Services                          ,15/09/2011,402 592 9588,628.92
Lancaster City Council,30UH,United Utilities,Property Services,Water Services                          ,19/09/2011,4085689636,1909.15
Lancaster City Council,30UH,United Utilities,Environmental Services,Water Services                          ,21/09/2011,4025466182,1315.63
Lancaster City Council,30UH,United Utilities,Community Engagement,Water Services                          ,28/09/2011,June to Sept Water,8540.43
Lancaster City Council,30UH,Valley View Pets Hotel,Health & Housing,Services - Kennelling                   ,12/09/2011,86/11,2778.74
Lancaster City Council,30UH,VPS (UK) Limited,Health & Housing,Contracted Services                     ,01/09/2011,629642,2000
Lancaster City Council,30UH,VPS (UK) Limited,Health & Housing,Contracted Services                     ,01/09/2011,629643,2000
Lancaster City Council,30UH,Wesley Methodist Church,Community Engagement,Venue - Premises Hire Costs             ,14/09/2011,120911,1054.7
Lancaster City Council,30UH,Whittle Programmed Painting Ltd,Health & Housing,Rota Painting                           ,01/09/2011,SINV004840,23410.46
Lancaster City Council,30UH,Wicksteed Leisure Limited,Environmental Services,Purchase Of Equipment                   ,05/09/2011,705414,2228.1
Lancaster City Council,30UH,WYG Environment Planning Transport Ltd,Regeneration and Policy,Services - Consultants                  ,28/09/2011,773349,1710.75
Lancaster City Council,30UH,Zoeller Waste Systems Limited,Environmental Services,Repair & Mtce Of Vehicles               ,28/09/2011,SVI008365,896.32
